bitfinex/quotes_SOLUSD_20240613
["timestamp","ask_amount","ask_price","bid_price","bid_amount"]
[1718270198322,254.3,151.71,151.63,8.34]
[1718270198629,8.34,151.69,151.63,8.34]
[1718270199433,0.17,151.7,151.63,8.34]
[1718270199611,6.87217038,151.72,151.63,8.34]
[1718270199612,0.34,151.71,151.63,8.34]
[1718270199924,0.34,151.71,151.61,0.17]
[1718270200127,8.34,151.7,151.65,8.34]
[1718270200430,8.34,151.7,151.64,8.34]
[1718270201628,15.1852,151.73,151.64,8.34]
[1718270201806,15.1852,151.73,151.61,0.34]
[1718270201807,8.34,151.69,151.63,8.34]
[1718270205311,0.34,151.72,151.61,0.17]
[1718270205312,8.34,151.67,151.61,0.17]
[1718270205517,8.34,151.67,151.61,8.34]
[1718270205743,8.34,151.66,151.6,30.2184]
[1718270206431,8.34,151.67,151.62,8.34]
[1718270207024,8.51,151.68,151.62,8.34]
[1718270207430,8.51,151.68,151.6,21.8784]
[1718270207733,8.51,151.68,151.62,8.34]
[1718270207939,8.51,151.68,151.63,1.31876276]
[1718270208311,8.34,151.68,151.63,1.31876276]
[1718270209233,8.34,151.68,151.62,8.34]
[1718270209429,15.1852,151.73,151.63,0.17]
[1718270209741,8.34,151.68,151.63,0.17]
[1718270210035,8.34,151.67,151.61,8.34]
[1718270210249,8.34,151.67,151.6,22.0484]
[1718270210430,8.34,151.67,151.61,28.34]
[1718270213428,6.87150462,151.71,151.62,8.51]
[1718270213615,8.34,151.68,151.63,8.34]
[1718270213816,8.34,151.68,151.62,0.17]
[1718270214017,8.34,151.68,151.63,8.34]
[1718270214530,8.34,151.69,151.63,8.34]
[1718270215026,8.34,151.7,151.64,8.34]
[1718270215426,8.34,151.71,151.65,8.34]
[1718270216113,6.87268637,151.73,151.66,0.17]
[1718270216336,33.36,151.76,151.66,8.51]
[1718270216635,8.34,151.72,151.65,16.0628]
[1718270216831,6.8722408,151.75,151.65,24.4028]
[1718270217034,8.34,151.71,151.65,24.4028]
[1718270217235,6.8722408,151.75,151.65,24.4028]
[1718270217536,8.34,151.71,151.65,24.4028]
[1718270219335,0.34,151.74,151.65,16.0628]
[1718270219336,8.34,151.7,151.65,16.0628]
[1718270220545,8.34,151.69,151.65,16.0628]
[1718270220721,8.34,151.68,151.65,16.0628]
[1718270221227,8.34,151.69,151.65,16.0628]
[1718270222227,8.34,151.68,151.65,16.0628]
[1718270222435,0.34,151.71,151.61,43.6715]
[1718270222436,8.34,151.67,151.61,43.6715]
[1718270224026,8.34,151.66,151.61,15.3315]
[1718270225251,0.17,151.69,151.61,15.3315]
[1718270225431,0.17,151.69,151.57,16.021]
[1718270225432,8.34,151.63,151.57,16.021]
[1718270225745,8.34,151.63,151.57,24.361]
[1718270226130,8.34,151.63,151.57,16.021]
[1718270226326,8.34,151.63,151.57,24.361]
[1718270226635,8.34,151.61,151.57,16.021]
[1718270226836,8.34,151.6,151.57,16.021]
[1718270229330,8.34,151.58,151.53,15.7757]
[1718270229652,8.34,151.57,151.53,15.7757]
[1718270230053,8.34,151.58,151.53,15.7757]
[1718270230634,8.34,151.58,151.53,24.1157]
[1718270231035,8.34,151.58,151.53,15.7757]
[1718270231231,0.17,151.63,151.53,15.7757]
[1718270231557,8.34,151.54,151.49,15.095]
[1718270231738,8.34,151.53,151.49,15.095]
[1718270232252,8.34,151.53,151.47,8.34]
[1718270232461,8.34,151.5,151.44,15.095]
[1718270232630,0.17,151.52,151.45,8.34]
[1718270232956,8.34,151.5,151.45,8.34]
[1718270233145,8.34,151.51,151.45,8.34]
[1718270233952,8.51,151.52,151.46,8.34]
[1718270234250,8.51,151.52,151.44,15.095]
[1718270234551,8.51,151.52,151.46,8.34]
[1718270234936,0.17,151.54,151.46,8.34]
[1718270235138,8.34,151.51,151.46,8.34]
[1718270236131,8.34,151.5,151.44,15.095]
[1718270236331,8.34,151.48,151.44,15.095]
[1718270237734,8.34,151.49,151.44,15.095]
[1718270238431,8.34,151.49,151.44,23.435]
[1718270239449,8.34,151.5,151.44,23.435]
[1718270239953,8.34,151.53,151.45,2.6129]
[1718270240156,8.34,151.53,151.47,8.34]
[1718270240653,8.34,151.51,151.46,8.34]
[1718270240858,8.34,151.52,151.46,8.34]
[1718270241362,8.34,151.51,151.46,8.34]
[1718270241846,8.34,151.51,151.44,15.095]
[1718270242167,8.34,151.5,151.45,20.0]
[1718270242346,8.34,151.51,151.45,28.34]
[1718270242543,8.34,151.51,151.46,8.34]
[1718270243145,6.86916285,151.56,151.46,8.34]
[1718270243355,8.34,151.52,151.47,8.34]
[1718270244134,8.34,151.52,151.48,0.17]
[1718270244457,8.34,151.55,151.49,8.34]
[1718270245443,8.34,151.53,151.48,26.5567]
[1718270246037,8.34,151.54,151.48,34.8967]
[1718270246459,8.34,151.53,151.48,14.8967]
[1718270246635,8.34,151.53,151.48,6.5567]
[1718270247044,8.34,151.54,151.48,14.8967]
[1718270247653,8.34,151.55,151.49,53.68]
[1718270248673,8.34,151.55,151.5,24.1882]
[1718270249085,8.34,151.56,151.5,24.1882]
[1718270249561,8.34,151.56,151.51,8.34]
[1718270249953,386.0,151.63,151.53,8.34]
[1718270250150,8.34,151.59,151.53,8.34]
[1718270250374,6.86765467,151.63,151.54,8.34]
[1718270250581,8.34,151.6,151.54,8.34]
[1718270250759,8.34,151.59,151.54,8.34]
[1718270251068,8.34,151.6,151.54,8.34]
[1718270252751,8.34,151.59,151.53,8.34]
[1718270253354,8.34,151.6,151.54,8.34]
[1718270253561,0.17,151.61,151.54,8.34]
[1718270253768,8.34,151.6,151.54,8.34]
[1718270256568,8.34,151.6,151.55,0.17]
[1718270260180,0.17,151.62,151.55,8.51]
[1718270260368,8.34,151.6,151.55,8.51]
[1718270260555,0.17,151.62,151.55,8.51]
[1718270260757,8.34,151.6,151.55,8.51]
[1718270261265,8.34,151.6,151.54,8.34]
[1718270262163,8.34,151.59,151.53,8.34]
[1718270263081,0.17,151.62,151.53,8.34]
[1718270263082,8.34,151.58,151.53,8.34]
[1718270265590,6.86765467,151.63,151.54,31.6285]
[1718270265779,8.34,151.6,151.54,31.6285]
[1718270266374,8.34,151.6,151.55,8.34]
[1718270266865,8.34,151.58,151.54,22.9485]
[1718270267095,8.34,151.59,151.54,22.9485]
[1718270267594,8.34,151.59,151.54,31.2885]
[1718270269779,8.34,151.59,151.54,22.9485]
[1718270269982,8.34,151.57,151.54,16.4871]
[1718270270393,8.34,151.56,151.5,29.5474]
[1718270270703,8.34,151.56,151.51,20.0]
[1718270271597,8.34,151.57,151.51,28.34]
[1718270272702,8.34,151.57,151.51,8.34]
[1718270273077,8.34,151.56,151.51,8.34]
[1718270273380,8.34,151.56,151.5,21.3774]
[1718270273588,8.34,151.56,151.5,29.7174]
[1718270274205,8.34,151.56,151.51,8.34]
[1718270276594,15.20047099,151.6,151.5,21.2074]
[1718270276780,8.34,151.53,151.5,15.0003]
[1718270276980,8.34,151.52,151.5,15.0003]
[1718270279008,8.34,151.51,151.46,30.4357]
[1718270280608,8.34,151.51,151.46,22.0957]
[1718270280910,6.871966,151.54,151.46,22.0957]
[1718270281099,8.34,151.5,151.46,22.0957]
[1718270283894,0.34,151.53,151.46,22.0957]
[1718270284098,8.34,151.5,151.46,22.0957]
[1718270286708,8.34,151.49,151.46,16.0247]
[1718270286901,8.34,151.48,151.46,16.0247]
[1718270287208,8.34,151.52,151.42,22.8575]
[1718270287209,8.34,151.47,151.42,22.8575]
[1718270289518,8.34,151.47,151.42,31.1975]
[1718270291008,33.36,151.52,151.42,22.8575]
[1718270291009,8.34,151.46,151.42,22.8575]
[1718270291386,8.34,151.47,151.42,22.8575]
[1718270292988,8.34,151.45,151.42,16.2144]
[1718270297604,7.05201089,151.51,151.42,16.2144]
[1718270297924,0.17,151.5,151.42,16.2144]
[1718270298097,8.34,151.47,151.42,16.2144]
[1718270299116,8.34,151.45,151.42,16.2144]
[1718270299525,8.34,151.46,151.42,16.2144]
[1718270308539,8.34,151.43,151.4,0.8197469]
[1718270309124,8.34,151.44,151.4,0.8197469]
[1718270309629,8.34,151.43,151.4,0.8197469]
[1718270310430,8.34,151.42,151.4,0.8197469]
[1718270311710,8.34,151.43,151.4,0.8197469]
[1718270313226,8.34,151.42,151.4,0.8197469]
[1718270314306,0.34,151.47,151.4,0.8197469]
[1718270314507,8.34,151.43,151.4,0.8197469]
[1718270315520,8.34,151.42,151.4,0.8197469]
[1718270315835,0.34,151.46,151.4,0.8197469]
[1718270316011,8.34,151.43,151.4,0.8197469]
[1718270317129,0.34,151.47,151.4,0.8197469]
[1718270317328,8.34,151.44,151.4,0.8197469]
[1718270318417,8.34,151.43,151.4,0.8197469]
[1718270320217,8.34,151.41,151.4,0.8197469]
[1718270324324,16.095,151.47,151.4,0.8197469]
[1718270324617,8.34,151.41,151.4,0.8197469]
[1718270329725,8.51,151.41,151.4,0.8197469]
[1718270331528,8.68,151.41,151.4,0.8197469]
[1718270333333,54.02,151.41,151.4,0.8197469]
[1718270337030,45.68,151.41,151.4,0.8197469]
[1718270337236,54.02,151.41,151.4,0.8197469]
[1718270339737,60.88947521,151.41,151.4,0.8197469]
[1718270340268,7.20947521,151.41,151.4,0.8197469]
[1718270340438,15.54947521,151.41,151.4,0.8197469]
[1718270340945,6.86947521,151.41,151.4,0.8197469]
[1718270341148,33.36,151.44,151.4,0.8197469]
[1718270341376,8.34,151.41,151.4,0.8197469]
[1718270342475,8.68,151.41,151.4,0.8197469]
[1718270345571,0.34,151.41,151.4,0.8197469]
[1718270345742,8.68,151.41,151.4,0.8197469]
[1718270347166,8.34,151.41,151.4,0.8197469]
[1718270347345,6.86818704,151.44,151.4,0.8197469]
[1718270347551,8.34,151.42,151.4,0.8197469]
[1718270347739,8.34,151.41,151.4,0.8197469]
[1718270348467,0.34,151.43,151.4,0.8197469]
[1718270353169,8.34,151.41,151.4,0.8197469]
[1718270354046,8.68,151.41,151.4,0.8197469]
[1718270354441,15.55042367,151.41,151.4,0.8197469]
[1718270355055,8.68,151.41,151.4,0.8197469]
[1718270356171,8.85,151.41,151.4,0.8197469]
[1718270356396,53.85,151.41,151.4,0.8197469]
[1718270357170,8.85,151.41,151.4,0.8197469]
[1718270357368,8.68,151.41,151.4,0.8197469]
[1718270357961,53.85,151.41,151.4,0.8197469]
[1718270359584,0.17,151.4,151.32,15.1459]
[1718270359873,8.34,151.33,151.32,15.1459]
[1718270360184,8.34,151.34,151.32,15.1459]
[1718270361275,8.34,151.33,151.27,15.872]
[1718270361452,8.34,151.31,151.27,15.872]
[1718270362776,8.34,151.32,151.27,15.872]
[1718270363953,8.34,151.31,151.27,15.872]
[1718270368053,8.34,151.3,151.27,15.872]
[1718270368277,8.34,151.29,151.27,15.872]
[1718270369156,0.17,151.33,151.25,0.8197469]
[1718270369157,8.34,151.28,151.25,0.8197469]
[1718270369660,8.34,151.26,151.25,0.8197469]
[1718270370450,8.51,151.26,151.25,0.8197469]
[1718270370651,674.57959881,151.43,151.25,0.8197469]
[1718270370652,145.0,151.41,151.25,0.8197469]
[1718270370855,8.34,151.26,151.25,0.8197469]
[1718270371283,0.17,151.33,151.25,0.8197469]
[1718270371482,8.34,151.26,151.25,0.8197469]
[1718270373467,8.51,151.26,151.25,0.8197469]
[1718270373671,8.68,151.26,151.25,0.8197469]
[1718270375501,8.51,151.26,151.25,0.8197469]
[1718270376489,8.68,151.26,151.25,0.8197469]
[1718270376893,0.17,151.26,151.25,0.8197469]
[1718270377071,8.51,151.26,151.25,0.8197469]
[1718270377987,6.87177358,151.29,151.25,0.8197469]
[1718270378190,8.34,151.29,151.25,0.8197469]
[1718270379590,8.34,151.29,151.25,16.6148469]
[1718270381194,8.34,151.28,151.25,16.6148469]
[1718270382070,8.34,151.26,151.25,0.8197469]
[1718270383093,8.68,151.26,151.25,0.8197469]
[1718270384993,8.51,151.26,151.25,0.8197469]
[1718270392519,6.87278048,151.3,151.25,0.8197469]
[1718270392677,254.3,151.31,151.25,0.8197469]
[1718270392994,8.34,151.27,151.25,0.8197469]
[1718270393172,254.3,151.31,151.25,0.8197469]
[1718270393173,8.34,151.28,151.25,0.8197469]
[1718270393378,8.34,151.27,151.25,0.8197469]
[1718270396505,8.34,151.28,151.25,0.8197469]
[1718270397495,0.17,151.29,151.25,0.8197469]
[1718270397689,8.34,151.27,151.25,0.8197469]
[1718270400898,0.34,151.3,151.25,0.8197469]
[1718270401107,8.34,151.27,151.25,0.8197469]
[1718270401683,8.34,151.26,151.25,0.8197469]
[1718270402011,8.51,151.26,151.25,0.8197469]
[1718270402900,8.34,151.26,151.25,0.8197469]
[1718270403103,8.34,151.27,151.25,0.8197469]
[1718270403905,0.17,151.28,151.25,0.8197469]
[1718270404104,261.17255832,151.31,151.25,0.8197469]
[1718270404287,254.3,151.31,151.26,23.9321]
[1718270404489,254.3,151.31,151.26,15.5921]
[1718270404690,262.64,151.31,151.26,15.5921]
[1718270405387,8.34,151.27,151.25,0.8197469]
[1718270405593,8.34,151.26,151.25,0.8197469]
[1718270405798,0.17,151.3,151.25,0.8197469]
[1718270405995,8.34,151.26,151.25,0.8197469]
[1718270406812,8.34,151.27,151.25,0.8197469]
[1718270408508,0.34,151.3,151.25,0.8197469]
[1718270408681,8.34,151.26,151.25,0.8197469]
[1718270410585,8.51,151.26,151.25,0.8197469]
[1718270413114,8.68,151.26,151.25,0.8197469]
[1718270413925,8.51,151.26,151.25,0.8197469]
[1718270415520,0.17,151.26,151.25,0.8197469]
[1718270415695,8.51,151.26,151.25,0.8197469]
[1718270417924,269.68201595,151.31,151.25,0.8197469]
[1718270418131,261.17201595,151.31,151.25,0.8197469]
[1718270418422,6.87201595,151.31,151.25,0.8197469]
[1718270418601,8.34,151.28,151.25,0.8197469]
[1718270419003,6.87201595,151.31,151.25,0.8197469]
[1718270419202,8.34,151.28,151.25,0.8197469]
[1718270419908,6.87201595,151.31,151.25,0.8197469]
[1718270420109,8.34,151.28,151.25,0.8197469]
[1718270420419,0.17,151.3,151.25,0.8197469]
[1718270420604,8.34,151.28,151.25,0.8197469]
[1718270420921,0.17,151.3,151.25,0.8197469]
[1718270421102,8.34,151.28,151.25,0.8197469]
[1718270426838,8.34,151.26,151.25,0.8197469]
[1718270427009,8.51,151.26,151.25,0.8197469]
[1718270428505,8.68,151.26,151.25,0.8197469]
[1718270429307,8.85,151.26,151.25,0.8197469]
[1718270429502,54.02,151.26,151.25,0.8197469]
[1718270431812,8.68,151.26,151.25,0.8197469]
[1718270432226,8.85,151.26,151.25,0.8197469]
[1718270432530,54.02,151.26,151.25,0.8197469]
[1718270438835,60.8889306,151.26,151.25,0.8197469]
[1718270440436,52.5489306,151.26,151.25,0.8197469]
[1718270440617,60.8889306,151.26,151.25,0.8197469]
[1718270442136,60.8889306,151.26,151.21,0.04113069]
[1718270442137,76.0771306,151.26,151.21,0.04113069]
[1718270442338,8.34,151.22,151.21,0.04113069]
[1718270442541,8.51,151.22,151.21,0.04113069]
[1718270447344,0.17,151.22,151.21,0.04113069]
[1718270447525,8.51,151.22,151.21,0.04113069]
[1718270450547,0.51,151.25,151.21,0.04113069]
[1718270450745,67.0571306,151.26,151.21,0.04113069]
[1718270450746,6.8689306,151.26,151.21,0.04113069]
[1718270450952,254.3,151.29,151.21,0.04113069]
[1718270451146,8.34,151.24,151.21,0.04113069]
[1718270451644,261.16788582,151.29,151.21,0.04113069]
[1718270452021,8.34,151.24,151.21,0.04113069]
[1718270452226,33.87,151.28,151.21,0.04113069]
[1718270452434,33.53,151.28,151.21,0.04113069]
[1718270453648,8.34,151.23,151.21,0.04113069]
[1718270454156,8.34,151.22,151.21,0.04113069]
[1718270456930,8.51,151.22,151.21,0.04113069]
[1718270460857,8.68,151.22,151.21,0.04113069]
[1718270461159,8.85,151.22,151.21,0.04113069]
[1718270462142,8.68,151.22,151.21,0.04113069]
[1718270462750,8.51,151.22,151.21,0.04113069]
[1718270463055,8.34,151.22,151.21,0.04113069]
[1718270463452,8.68,151.22,151.21,0.04113069]
[1718270467454,8.51,151.22,151.21,0.04113069]
[1718270468036,8.68,151.22,151.21,0.04113069]
[1718270471054,53.85,151.22,151.21,0.04113069]
[1718270471365,54.02,151.22,151.21,0.04113069]
[1718270472059,60.89006282,151.22,151.21,0.04113069]
[1718270472359,0.17,151.21,151.11,16.6468]
[1718270472561,8.34,151.15,151.11,16.6468]
[1718270473065,33.36,151.2,151.11,16.6468]
[1718270473066,8.34,151.13,151.11,16.6468]
[1718270474168,8.34,151.14,151.11,16.6468]
[1718270475356,33.36,151.2,151.11,16.6468]
[1718270475559,8.34,151.14,151.11,16.6468]
[1718270475860,6.87006282,151.22,151.11,24.9868]
[1718270476065,8.34,151.16,151.11,27.4352]
[1718270476263,33.36,151.2,151.11,24.9868]
[1718270476646,8.34,151.16,151.11,16.6468]
[1718270477945,8.34,151.19,151.13,10.7882]
[1718270478560,6.8698747,151.23,151.16,15.653]
[1718270478745,33.36,151.28,151.16,15.653]
[1718270478946,8.34,151.21,151.16,15.653]
[1718270479155,6.87036932,151.25,151.16,15.653]
[1718270479369,8.34,151.21,151.16,15.653]
[1718270479961,6.8709005,151.25,151.16,15.653]
[1718270480166,8.34,151.22,151.16,23.993]
[1718270480452,8.34,151.22,151.17,8.34]
[1718270480753,8.34,151.23,151.17,8.34]
[1718270481349,8.34,151.23,151.16,23.993]
[1718270481665,8.34,151.22,151.16,23.993]
[1718270482060,8.34,151.2,151.16,15.653]
[1718270482850,8.34,151.17,151.16,15.653]
[1718270483171,8.34,151.17,151.14,6.2887]
[1718270483852,8.34,151.18,151.14,6.2887]
[1718270484075,8.34,151.17,151.14,6.2887]
[1718270487968,0.17,151.25,151.14,6.2887]
[1718270488169,8.34,151.18,151.14,6.2887]
[1718270488873,8.34,151.17,151.14,6.2887]
[1718270489262,45.68,151.25,151.14,6.2887]
[1718270489468,8.34,151.18,151.14,6.2887]
[1718270489674,45.68,151.25,151.14,6.2887]
[1718270489878,8.34,151.18,151.14,6.2887]
[1718270490268,8.34,151.17,151.14,6.2887]
[1718270490984,8.34,151.16,151.12,16.2482]
[1718270492180,8.34,151.16,151.12,18.6965]
[1718270492374,8.34,151.16,151.12,16.2482]
[1718270494473,33.36,151.2,151.12,16.2482]
[1718270494675,0.34,151.19,151.12,16.2482]
[1718270495196,8.34,151.15,151.12,16.2482]
[1718270495375,8.34,151.14,151.12,16.2482]
[1718270496795,57.7409,151.13,151.1,0.8197469]
[1718270496997,8.34,151.11,151.1,0.8197469]
[1718270497305,8.68,151.11,151.1,0.8197469]
[1718270497467,8.85,151.11,151.1,0.8197469]
[1718270497662,0.34,151.11,151.1,0.8197469]
[1718270497983,8.34,151.11,151.1,0.8197469]
[1718270498883,8.68,151.11,151.1,0.8197469]
[1718270500478,53.68,151.11,151.1,0.8197469]
[1718270500684,53.85,151.11,151.1,0.8197469]
[1718270502506,53.68,151.11,151.1,0.8197469]
[1718270502684,8.68,151.11,151.1,0.8197469]
[1718270503600,53.85,151.11,151.1,0.8197469]
[1718270503782,8.68,151.11,151.1,0.8197469]
[1718270505169,53.85,151.11,151.1,0.8197469]
[1718270505691,8.68,151.11,151.1,0.8197469]
[1718270508488,53.85,151.11,151.1,0.8197469]
[1718270508903,8.68,151.11,151.1,0.8197469]
[1718270509077,0.34,151.11,151.1,0.8197469]
[1718270509896,6.87215536,151.13,151.1,0.8197469]
[1718270510077,8.34,151.11,151.1,0.8197469]
[1718270511171,6.87215536,151.13,151.1,0.8197469]
[1718270511377,8.34,151.12,151.1,0.8197469]
[1718270511777,8.34,151.11,151.1,0.8197469]
[1718270513414,0.17,151.16,151.1,0.8197469]
[1718270513584,8.34,151.11,151.1,0.8197469]
[1718270513985,45.51,151.16,151.1,0.8197469]
[1718270514493,8.34,151.11,151.1,0.8197469]
[1718270514802,0.34,151.11,151.1,0.8197469]
[1718270515177,8.68,151.11,151.1,0.8197469]
[1718270515884,19.09837706,151.16,151.1,0.8197469]
[1718270516086,2.55807706,151.16,151.1,0.8197469]
[1718270516289,8.34,151.13,151.1,16.0721469]
[1718270516606,2.55807706,151.16,151.1,16.0721469]
[1718270516897,2.55807706,151.16,151.11,8.51]
[1718270517101,2.55807706,151.16,151.12,8.34]
[1718270517281,2.55807706,151.16,151.12,10.7882]
[1718270517684,8.34,151.18,151.12,8.34]
[1718270517897,8.34,151.18,151.13,0.17]
[1718270518487,8.34,151.18,151.1,16.0721469]
[1718270518690,8.34,151.17,151.11,73.51]
[1718270519690,8.34,151.17,151.11,75.9585]
[1718270520204,8.34,151.17,151.11,73.51]
[1718270520380,8.34,151.16,151.11,65.17]
[1718270520581,8.34,151.2,151.1,16.0721469]
[1718270520582,8.34,151.13,151.1,16.0721469]
[1718270520805,8.34,151.12,151.1,16.0721469]
[1718270521009,8.34,151.13,151.1,16.0721469]
[1718270521184,8.34,151.14,151.1,16.0721469]
[1718270522591,8.34,151.11,151.1,0.8197469]
[1718270522988,8.68,151.11,151.1,0.8197469]
[1718270523291,8.51,151.11,151.1,0.8197469]
[1718270524296,0.17,151.11,151.1,0.8197469]
[1718270524607,8.34,151.11,151.1,0.8197469]
[1718270524913,8.51,151.11,151.1,0.8197469]
[1718270527424,8.34,151.11,151.1,0.8197469]
[1718270529196,8.85,151.11,151.1,0.8197469]
[1718270530315,8.51,151.11,151.1,0.8197469]
[1718270530517,8.85,151.11,151.1,0.8197469]
[1718270530891,8.51,151.11,151.1,0.8197469]
[1718270531922,6.8756741,151.15,151.1,0.8197469]
[1718270532090,8.34,151.11,151.1,0.8197469]
[1718270532408,8.34,151.12,151.1,0.8197469]
[1718270533618,186.80384801,151.21,151.1,0.8197469]
[1718270533619,22.6516,151.22,151.1,0.8197469]
[1718270533825,33.36,151.2,151.1,9.1597469]
[1718270534004,8.34,151.15,151.1,9.1597469]
[1718270534326,8.34,151.16,151.1,9.1597469]
[1718270534522,33.36,151.2,151.1,0.8197469]
[1718270534829,8.34,151.13,151.1,0.8197469]
[1718270535123,8.34,151.14,151.1,0.8197469]
[1718270535429,33.36,151.2,151.1,0.8197469]
[1718270535735,8.34,151.14,151.1,0.8197469]
[1718270535906,0.51,151.19,151.11,0.17]
[1718270536102,8.34,151.17,151.11,8.34]
[1718270536317,0.51,151.19,151.1,0.8197469]
[1718270536318,8.34,151.15,151.1,9.1597469]
[1718270537134,8.34,151.14,151.1,0.8197469]
[1718270537837,8.34,151.12,151.1,0.8197469]
[1718270538607,8.85,151.19,151.1,0.8197469]
[1718270538830,8.34,151.13,151.1,0.8197469]
[1718270539034,8.34,151.12,151.1,0.8197469]
[1718270541235,8.34,151.13,151.1,0.8197469]
[1718270541433,45.0,151.18,151.1,0.8197469]
[1718270541635,8.34,151.13,151.1,0.8197469]
[1718270543116,0.51,151.17,151.1,0.8197469]
[1718270543319,8.34,151.12,151.1,0.8197469]
[1718270543619,8.34,151.11,151.1,0.8197469]
[1718270544539,8.85,151.11,151.1,0.8197469]
[1718270544738,9.02,151.11,151.1,0.8197469]
[1718270544914,54.02,151.11,151.1,0.8197469]
[1718270546036,53.85,151.11,151.1,0.8197469]
[1718270548454,54.02,151.11,151.1,0.8197469]
[1718270550834,53.85,151.11,151.1,0.8197469]
[1718270551141,8.85,151.11,151.1,0.8197469]
[1718270551646,53.85,151.11,151.1,0.8197469]
[1718270554820,60.72704602,151.11,151.1,0.8197469]
[1718270555549,52.38704602,151.11,151.1,0.8197469]
[1718270555726,15.21704602,151.11,151.1,0.8197469]
[1718270556051,8.34,151.11,151.1,0.8197469]
[1718270565162,8.51,151.11,151.1,0.8197469]
[1718270566043,53.85,151.11,151.1,0.8197469]
[1718270566376,53.85,151.11,151.03,6.6122]
[1718270566545,8.34,151.05,151.03,6.6122]
[1718270567247,8.34,151.06,151.03,6.6122]
[1718270569247,8.34,151.07,151.03,6.6122]
[1718270570252,8.34,151.06,151.03,6.6122]
[1718270570458,45.34,151.1,151.03,6.6122]
[1718270570779,8.34,151.06,151.03,6.6122]
[1718270572580,45.34,151.1,151.01,16.0771]
[1718270572581,8.34,151.05,151.01,16.0771]
[1718270572879,8.34,151.04,151.01,16.0771]
[1718270573268,8.34,151.03,151.01,16.0771]
[1718270573474,8.34,151.04,151.01,16.0771]
[1718270575673,0.17,151.07,151.01,16.0771]
[1718270575882,8.34,151.06,151.01,16.0771]
[1718270577183,45.17,151.1,151.01,16.0771]
[1718270577477,8.34,151.08,151.02,8.51]
[1718270577977,6.87744592,151.11,151.02,8.51]
[1718270578157,8.34,151.08,151.02,8.51]
[1718270578575,8.34,151.07,151.02,8.51]
[1718270579457,8.34,151.07,151.01,24.4171]
[1718270579657,8.34,151.06,151.01,16.0771]
[1718270580993,8.34,151.05,151.01,16.0771]
[1718270583993,6.87744592,151.11,151.01,16.0771]
[1718270584199,8.34,151.07,151.02,8.51]
[1718270584489,8.34,151.07,151.01,24.4171]
[1718270584695,8.34,151.06,151.01,16.0771]
[1718270590902,45.34,151.1,151.01,24.4171]
[1718270591197,8.34,151.07,151.01,24.4171]
[1718270591716,8.34,151.06,151.01,16.0771]
[1718270592572,8.34,151.05,151.01,16.0771]
[1718270593700,0.17,151.07,151.01,16.0771]
[1718270593992,8.34,151.05,151.01,16.0771]
[1718270594184,0.17,151.07,151.01,16.0771]
[1718270594495,8.34,151.05,151.01,16.0771]
[1718270595001,8.34,151.04,151.01,16.0771]